bitfinex/quotes_BTCUSD_20251219
["timestamp","ask_amount","ask_price","bid_price","bid_amount"]
[1766138665802,0.46921,88340.0,88329.0,0.0025]
[1766138665992,0.26482,88337.0,88329.0,0.0025]
[1766138666859,0.26482,88336.0,88329.0,0.0025]
[1766138667269,0.0025,88341.0,88329.0,0.0025]
[1766138667467,0.0025,88344.0,88337.0,0.46395]
[1766138667845,0.00024675,88339.0,88329.0,0.22892573]
[1766138668053,0.00024675,88339.0,88330.0,0.0025]
[1766138668805,7.5e-07,88339.0,88334.0,0.0025]
[1766138670581,7.5e-07,88339.0,88336.0,0.01132041]
[1766138670756,0.0002,88345.0,88336.0,0.01132041]
[1766138670757,7.5e-07,88345.0,88343.0,0.46395]
[1766138671003,7.5e-07,88350.0,88348.0,0.46395]
[1766138671179,7.5e-07,88350.0,88348.0,0.69032743]
[1766138671384,7.5e-07,88350.0,88348.0,0.46395]
[1766138673108,7.5e-07,88350.0,88349.0,0.04536047]
[1766138673456,7.5e-07,88350.0,88349.0,0.04511447]
[1766138673937,7.5e-07,88350.0,88344.0,0.01699938]
[1766138674154,7.5e-07,88350.0,88345.0,0.0025]
[1766138674344,7.5e-07,88350.0,88345.0,0.47327]
[1766138676458,0.00024671,88347.0,88345.0,0.47327]
[1766138677502,0.26482,88360.0,88345.0,0.47327]
[1766138677503,0.23798,88374.0,88352.0,0.0025]
[1766138677727,0.72573,88371.0,88360.0,0.04536047]
[1766138678097,0.23798,88370.0,88360.0,0.05104047]
[1766138679561,0.0025,88369.0,88360.0,0.04828352]
[1766138679967,0.24048,88369.0,88360.0,0.04828352]
[1766138680830,0.23798,88379.0,88361.0,0.01131721]
[1766138680973,0.23798,88379.0,88364.0,0.47077]
[1766138681175,0.00568,88381.0,88369.0,0.47077]
[1766138681378,0.48775,88382.0,88369.0,0.47077]
[1766138681596,0.23798,88381.0,88369.0,0.47077]
[1766138681797,0.0025,88382.0,88375.0,0.04536047]
[1766138682133,0.0002,88385.0,88376.0,0.00568]
[1766138682333,0.0002,88385.0,88382.0,0.001099]
[1766138682809,0.0002,88385.0,88376.0,0.01699528]
[1766138683137,0.0002,88385.0,88377.0,0.47327]
[1766138683337,0.0002,88385.0,88379.0,0.0025]
[1766138683921,0.05,88382.0,88379.0,0.0025]
[1766138684117,0.0002,88385.0,88379.0,0.0025]
[1766138684328,0.00101734,88380.0,88379.0,0.0025]
[1766138684530,3.4e-07,88380.0,88379.0,0.0025]
[1766138685522,3.4e-07,88380.0,88379.0,0.2287981]
[1766138686127,0.0025,88392.0,88381.0,0.48458464]
[1766138686346,0.0025,88392.0,88382.0,0.00568]
[1766138686936,0.00024646,88388.0,88382.0,0.00568]
[1766138687298,0.48775,88399.0,88382.0,0.00568]
[1766138687299,0.23798,88410.0,88391.0,0.47077]
[1766138687571,0.23798,88406.0,88392.0,0.04536047]
[1766138687793,0.01131068,88412.0,88392.0,0.04536047]
[1766138687794,0.01130953,88421.0,88396.0,0.47327]
[1766138687951,0.01130953,88421.0,88395.0,0.23756816]
[1766138687952,0.23798,88415.0,88399.0,0.0025]
[1766138688203,0.23798,88413.0,88399.0,0.0025]
[1766138688413,0.23798,88413.0,88401.0,0.0025]
[1766138688787,0.23798,88413.0,88401.0,0.001483]
[1766138690469,0.0025,88406.0,88385.0,0.01131413]
[1766138690706,0.23798,88399.0,88391.0,0.04536047]
[1766138690905,0.23798,88398.0,88392.0,0.00568]
[1766138691307,0.48775,88399.0,88392.0,0.00568]
[1766138691510,0.23798,88403.0,88392.0,0.00568]
[1766138691714,0.23798,88403.0,88393.0,0.04536047]
[1766138692137,0.0025,88406.0,88393.0,0.04536047]
[1766138692500,0.0025,88406.0,88394.0,0.0025]
[1766138692865,0.00024651,88396.0,88394.0,0.0025]
[1766138693073,5.1e-07,88396.0,88394.0,0.0025]
[1766138694010,5.1e-07,88396.0,88395.0,0.22625714]
[1766138694218,5.1e-07,88396.0,88395.0,0.69952714]
[1766138697435,0.0025,88420.0,88408.0,0.47077]
[1766138697670,0.0025,88420.0,88402.0,0.0025]
[1766138697671,0.0113071,88440.0,88420.0,0.47077]
[1766138697878,0.01130812,88432.0,88421.0,0.02237306]
[1766138698088,0.01130953,88421.0,88401.0,0.00568]
[1766138698300,0.48775,88414.0,88406.0,0.0025]
[1766138698501,0.23798,88418.0,88405.0,0.04536047]
[1766138698700,0.23798,88424.0,88408.0,0.47077]
[1766138698927,0.00024611,88423.0,88409.0,0.00568]
[1766138699130,0.23798,88424.0,88411.0,0.0138108]
[1766138699338,0.23798,88424.0,88411.0,0.02512161]
[1766138699543,0.48775,88423.0,88411.0,0.0025]
[1766138699957,0.23798,88420.0,88411.0,0.0025]
[1766138700184,0.48775,88413.0,88406.0,0.00036388]
[1766138700391,0.23798,88412.0,88407.0,0.00568]
[1766138700565,0.23798,88417.0,88407.0,0.00568]
[1766138700785,0.48775,88420.0,88408.0,0.01131119]
[1766138700986,0.0025,88428.0,88411.0,0.47077]
[1766138701140,0.0025,88428.0,88412.0,0.00568]
[1766138701349,0.0025,88426.0,88410.0,0.01131093]
[1766138701549,0.0025,88434.0,88420.0,0.04536047]
[1766138701760,0.24048,88429.0,88420.0,0.00568]
[1766138701949,0.23798,88424.0,88420.0,0.00568]
[1766138703628,0.48775,88425.0,88420.0,0.00568]
[1766138703831,0.48775,88428.0,88420.0,0.00568]
[1766138704042,0.00077013,88421.0,88420.0,0.00568]
[1766138704548,1.3e-07,88421.0,88411.0,0.0025]
[1766138704746,0.25296,88417.0,88412.0,0.0025]
[1766138704865,0.47671,88416.0,88411.0,0.00568]
[1766138705066,0.47671,88416.0,88400.0,0.05663221]
[1766138705067,0.25296,88409.0,88400.0,0.00568]
[1766138705282,0.72967,88407.0,88400.0,0.00604463]
[1766138705479,0.25296,88406.0,88400.0,0.00604463]
[1766138705884,0.25296,88406.0,88400.0,0.00036463]
[1766138706134,0.25296,88398.0,88378.0,0.49679]
[1766138706362,0.25296,88387.0,88377.0,0.04536047]
[1766138706528,0.01131477,88380.0,88360.0,0.55071085]
[1766138706708,0.48802541,88375.0,88360.0,0.04260352]
[1766138706922,0.47671,88373.0,88360.0,0.04828352]
[1766138707109,0.47671,88373.0,88361.0,0.0025]
[1766138707311,0.48802605,88370.0,88354.0,0.04536047]
[1766138707514,0.01131592,88371.0,88354.0,0.04536047]
[1766138707515,0.47671,88368.0,88355.0,0.00568]
[1766138707715,0.0025,88367.0,88349.0,0.04536047]
[1766138707919,0.47671,88366.0,88363.0,0.04536047]
[1766138708117,0.0025,88374.0,88363.0,0.04536047]
[1766138708523,0.0025,88374.0,88358.0,0.00568]
[1766138708743,0.47921,88371.0,88359.0,0.0025]
[1766138709121,0.47671,88368.0,88353.0,0.00568]
[1766138709296,0.001099,88359.0,88353.0,0.00574602]
[1766138709498,0.47671,88361.0,88353.0,0.00574602]
[1766138710342,0.00568,88368.0,88355.0,0.01131797]
[1766138710564,0.25864,88368.0,88353.0,0.01706425]
[1766138710807,0.25296,88365.0,88355.0,0.01131797]
[1766138711037,0.25296,88365.0,88355.0,0.0025]
[1766138711309,0.72967,88364.0,88355.0,0.0025]
[1766138712189,0.72967,88364.0,88355.0,0.01381797]
[1766138712394,0.72967,88364.0,88355.0,0.0025]
[1766138712589,0.47671,88364.0,88355.0,0.0025]
[1766138712775,0.25296,88363.0,88355.0,0.0025]
[1766138713405,0.25296,88363.0,88355.0,0.01381797]
[1766138713606,0.25296,88363.0,88355.0,0.0025]
[1766138713944,0.25296,88363.0,88355.0,0.01381797]
[1766138714076,0.25296,88363.0,88357.0,0.0025]
[1766138715316,0.25296,88363.0,88357.0,0.01408663]
[1766138715521,0.25296,88363.0,88357.0,0.00276891]
[1766138716107,0.0025,88373.0,88362.0,0.01131708]
[1766138716330,0.25296,88378.0,88364.0,0.01131682]
[1766138716540,0.25546,88377.0,88365.0,0.01131669]
[1766138716978,0.25546,88375.0,88361.0,0.50247]
[1766138717310,0.25546,88375.0,88363.0,0.01131695]
[1766138717434,0.25546,88375.0,88366.0,0.01131656]
[1766138717638,0.25546,88375.0,88364.0,0.23765233]
[1766138717877,0.25296,88388.0,88369.0,0.01131618]
[1766138718093,0.25864,88387.0,88370.0,0.00568]
[1766138718358,0.72967,88386.0,88370.0,0.00568]
[1766138718522,0.25296,88384.0,88370.0,0.00568]
[1766138718861,0.25296,88384.0,88370.0,0.01699605]
[1766138719019,0.00568,88387.0,88378.0,0.01131503]
[1766138719238,0.00568,88387.0,88380.0,0.01131477]
[1766138719434,0.0025,88386.0,88377.0,0.01131516]
[1766138719638,0.00568,88387.0,88377.0,0.01131516]
[1766138719834,0.00568,88387.0,88376.0,0.01131528]
[1766138719835,0.0025,88385.0,88376.0,0.01131528]
[1766138720061,0.72967,88386.0,88376.0,0.01131528]
[1766138720236,0.72967,88386.0,88377.0,0.01381516]
[1766138720444,0.72967,88386.0,88380.0,0.0025]
[1766138720806,0.47671,88386.0,88382.0,0.01381452]
[1766138720991,0.00568,88387.0,88383.0,0.01131439]
[1766138721536,0.25296,88391.0,88383.0,0.23760219]
[1766138722124,0.25296,88391.0,88382.0,0.01381452]
[1766138722312,0.25296,88391.0,88383.0,0.01131439]
[1766138722994,0.25296,88391.0,88384.0,0.01131426]
[1766138723324,0.25296,88391.0,88383.0,0.23760094]
[1766138723523,0.25296,88391.0,88382.0,0.01381452]
[1766138723729,0.25296,88391.0,88382.0,0.24010486]
[1766138723883,0.25296,88391.0,88380.0,0.0025]
[1766138724085,0.25296,88391.0,88382.0,0.01381452]
[1766138724713,0.25296,88391.0,88382.0,0.0025]
[1766138725681,0.254059,88382.0,88377.0,6.602e-05]
[1766138725922,0.254059,88382.0,88370.0,0.01131605]
[1766138725923,0.25296,88380.0,88370.0,0.01131605]
[1766138726119,0.47671,88376.0,88362.0,0.1478]
[1766138726330,0.25296,88369.0,88362.0,7.022e-05]
[1766138726534,0.01131528,88376.0,88359.0,2.2e-07]
[1766138726535,0.25296,88365.0,88359.0,2.2e-07]
[1766138726740,0.25296,88365.0,88359.0,4.19e-06]
[1766138726942,0.25296,88359.0,88357.0,3.1e-06]
[1766138727157,0.47671,88360.0,88357.0,3.1e-06]
[1766138727158,0.47671,88360.0,88357.0,8.129e-05]
[1766138727376,0.47671,88360.0,88357.0,1.29e-06]
[1766138727742,0.47671,88360.0,88358.0,0.0025]
[1766138727953,0.47671,88360.0,88357.0,1.29e-06]
[1766138729434,0.71412,88360.0,88357.0,1.29e-06]
[1766138730061,0.92447188,88358.0,88357.0,1.29e-06]
[1766138730260,0.69812,88358.0,88357.0,1.29e-06]
[1766138730458,0.69562,88358.0,88357.0,1.29e-06]
[1766138733893,0.00568,88359.0,88357.0,1.29e-06]
[1766138734511,0.00568,88360.0,88359.0,0.001099]
[1766138734925,0.00568,88360.0,88357.0,1.29e-06]
[1766138736012,0.0025,88363.0,88357.0,1.29e-06]
[1766138736168,0.22527,88363.0,88357.0,1.29e-06]
[1766138736555,0.70418,88363.0,88357.0,1.29e-06]
[1766138736755,0.0025,88361.0,88357.0,1.29e-06]
[1766138737339,0.22527,88361.0,88357.0,1.29e-06]
[1766138738799,0.22277,88360.0,88357.0,1.29e-06]
[1766138739176,0.70168,88358.0,88357.0,1.29e-06]
[1766138741906,0.22527,88361.0,88357.0,1.29e-06]
[1766138742178,0.22277,88359.0,88357.0,1.29e-06]
[1766138742745,0.22277,88358.0,88357.0,1.29e-06]
[1766138743210,0.47891,88359.0,88357.0,1.29e-06]
[1766138743360,0.0025,88361.0,88357.0,1.29e-06]
[1766138744310,0.22527,88361.0,88357.0,1.29e-06]
[1766138746219,0.48141,88361.0,88357.0,1.29e-06]
[1766138746428,0.47891,88360.0,88357.0,1.29e-06]
[1766138746626,0.22277,88359.0,88357.0,1.29e-06]
[1766138746921,0.47891,88360.0,88357.0,1.29e-06]
[1766138747102,0.47891,88358.0,88357.0,1.29e-06]
[1766138747323,0.70168,88358.0,88357.0,1.29e-06]
[1766138748742,0.0025,88361.0,88357.0,1.29e-06]
[1766138751636,0.22277,88360.0,88357.0,1.29e-06]
[1766138753554,0.70168,88358.0,88357.0,1.29e-06]
[1766138753993,0.93371188,88358.0,88357.0,1.29e-06]
[1766138754193,0.70736,88358.0,88357.0,1.29e-06]
[1766138754831,0.70986,88358.0,88357.0,1.29e-06]
[1766138755145,0.93621188,88358.0,88357.0,1.29e-06]
[1766138755691,0.94621188,88358.0,88357.0,1.29e-06]
[1766138757078,0.94621188,88358.0,88327.0,0.00568]
[1766138757079,0.47891,88337.0,88327.0,0.0025]
[1766138757278,0.22277,88332.0,88327.0,8.263e-05]
[1766138757481,0.22277,88332.0,88310.0,0.22647264]
[1766138757482,0.0025,88327.0,88308.0,0.06051404]
[1766138757732,0.70168,88324.0,88315.0,0.22646079]
[1766138757934,0.70168,88324.0,88313.0,0.05009]
[1766138758133,0.70168,88324.0,88313.0,0.06141336]
[1766138758749,0.0025,88325.0,88313.0,0.05009]
[1766138758870,0.47891,88316.0,88300.0,0.00568]
[1766138759219,0.0025,88317.0,88300.0,0.00568]
[1766138759220,0.22277,88312.0,88301.0,0.0025]
[1766138759435,0.22277,88312.0,88301.0,0.0113249]
[1766138759647,0.22277,88312.0,88302.0,0.0025]
[1766138759876,0.22277,88312.0,88300.0,9.071e-05]
[1766138759877,0.70168,88312.0,88300.0,9.071e-05]
[1766138760078,0.22277,88311.0,88301.0,0.0113249]
[1766138760280,0.22277,88311.0,88300.0,9.071e-05]
[1766138760281,0.22527,88317.0,88305.0,0.22648774]
[1766138760456,0.00568,88324.0,88309.0,0.47012]
[1766138760638,0.00568,88324.0,88311.0,0.01132361]
[1766138760840,0.00568,88324.0,88312.0,0.01132348]
[1766138761047,0.47891,88328.0,88312.0,0.01132348]
[1766138761048,0.00568,88327.0,88314.0,0.0025]
[1766138761712,0.22277,88322.0,88314.0,0.0025]
[1766138761857,0.22277,88320.0,88311.0,0.00568]
[1766138762066,0.22277,88320.0,88311.0,0.24347492]
[1766138762318,0.22277,88320.0,88312.0,0.01132348]
[1766138762518,0.22277,88320.0,88310.0,0.00568]
[1766138762729,0.22277,88319.0,88310.0,0.00568]
[1766138762882,0.47891,88320.0,88311.0,0.01132361]
[1766138763078,0.0025,88326.0,88314.0,0.23778777]
[1766138763305,0.22527,88326.0,88313.0,0.01132336]
[1766138763927,0.4586,88326.0,88314.0,0.2289627]
[1766138764149,0.4561,88335.0,88323.0,0.01132207]
[1766138764295,0.09068047,88352.0,88329.0,0.46213]
[1766138764296,0.00568,88341.0,88329.0,0.46213]
[1766138764699,0.0025,88340.0,88329.0,0.46213]
[1766138765402,0.0025,88340.0,88329.0,0.46222071]
[1766138766089,0.00568,88341.0,88331.0,0.47345105]
[1766138766291,0.00568,88341.0,88331.0,0.6998719]
[1766138766489,0.00568,88341.0,88333.0,0.0025]
[1766138766800,0.00568,88341.0,88333.0,0.22891583]
[1766138767006,0.46178,88347.0,88333.0,0.0025]
[1766138767207,0.0025,88346.0,88333.0,0.70236426]
[1766138767516,0.0025,88346.0,88336.0,0.01132041]
[1766138767717,0.0025,88346.0,88335.0,0.0025]
[1766138768332,0.21827,88346.0,88335.0,0.0025]
[1766138769165,0.0025,88346.0,88336.0,0.0025]
[1766138769405,0.0025,88346.0,88336.0,0.46463]
[1766138769617,0.0025,88346.0,88336.0,0.47595041]
[1766138769986,0.21577,88359.0,88342.0,0.01131964]
[1766138770301,0.00818,88358.0,88343.0,0.46213]
[1766138770645,0.23526759,88358.0,88343.0,0.46213]
[1766138770863,0.0025,88357.0,88343.0,0.46213]
[1766138771083,0.21827,88357.0,88343.0,0.46213]
[1766138771694,0.00568,88358.0,88343.0,0.46463]
[1766138772055,0.0025,88357.0,88343.0,0.46463]
[1766138772853,0.4561,88352.0,88343.0,0.00818]
[1766138773056,0.4561,88351.0,88343.0,0.0025]
[1766138773232,0.21577,88350.0,88343.0,0.0025]
[1766138775364,0.4561,88351.0,88343.0,0.01381951]
[1766138775563,0.4561,88351.0,88343.0,0.0025]
[1766138776224,0.4561,88351.0,88343.0,0.01381951]
[1766138776386,0.4561,88351.0,88343.0,0.0025]
[1766138776602,0.4561,88351.0,88340.0,0.0113199]
[1766138776775,0.67187,88351.0,88343.0,0.23770981]
[1766138776978,0.67187,88351.0,88344.0,0.01131938]
[1766138777187,0.03147267,88390.0,88340.0,0.0113199]
[1766138777188,0.01,88373.0,88360.0,0.01131733]
[1766138777390,0.00568,88379.0,88362.0,0.23765872]
[1766138777596,0.00568,88379.0,88366.0,0.23764733]
[1766138777800,0.00568,88379.0,88371.0,0.01131592]
[1766138777983,0.0025,88378.0,88374.0,0.001099]
[1766138778362,0.00568,88379.0,88374.0,0.001099]
[1766138778363,0.00568,88379.0,88374.0,9.071e-05]
[1766138778944,0.21577,88378.0,88368.0,0.00568]
[1766138779121,0.0025,88377.0,88368.0,0.00568]
[1766138779324,0.21577,88377.0,88368.0,0.00568]
[1766138779909,0.21577,88377.0,88362.0,0.0025]
[1766138780107,0.21577,88372.0,88364.0,0.0025]
[1766138780536,0.67187,88372.0,88364.0,0.0025]
[1766138780738,0.21577,88371.0,88364.0,0.0025]
[1766138781410,0.0025,88374.0,88361.0,0.0025]
[1766138781615,0.4586,88374.0,88361.0,0.0025]
[1766138781766,0.0025,88372.0,88361.0,0.0025]
[1766138781966,0.21577,88366.0,88358.0,0.01131759]
[1766138782523,0.21577,88366.0,88359.0,0.01131746]
[1766138782696,0.21577,88366.0,88357.0,0.00568]
[1766138782897,0.21577,88363.0,88355.0,0.00568]
[1766138783884,0.21577,88363.0,88356.0,0.0025]
[1766138784511,0.47014,88363.0,88356.0,0.0025]
[1766138784713,0.19005,88361.0,88352.0,0.0025]
[1766138785056,0.19005,88357.0,88344.0,0.01699938]
[1766138785271,0.19005,88356.0,88344.0,0.24338695]
[1766138785492,0.19005,88356.0,88344.0,0.00568]
[1766138785894,0.0025,88360.0,88344.0,0.00568]
[1766138786101,0.47014,88359.0,88344.0,0.00568]
[1766138786366,0.0025,88358.0,88344.0,0.00568]
[1766138786539,0.19005,88356.0,88344.0,0.00568]
[1766138786768,0.66019,88353.0,88344.0,0.00568]
[1766138786973,0.0025,88358.0,88353.0,0.001099]
[1766138787326,0.0025,88360.0,88348.0,0.23769394]
[1766138787552,0.0025,88360.0,88349.0,0.01131874]
[1766138787894,0.19005,88372.0,88360.0,0.001099]
[1766138788031,0.0025,88370.0,88360.0,0.001099]
[1766138788434,0.0025,88370.0,88357.0,0.01131772]
[1766138788637,0.0025,88370.0,88355.0,0.01131797]
[1766138788868,0.19005,88367.0,88353.0,0.47614]
[1766138789074,0.19005,88367.0,88354.0,0.23767873]
[1766138789434,0.19005,88367.0,88355.0,0.01131797]
[1766138789778,0.19005,88367.0,88354.0,0.01101631]
[1766138790003,0.19005,88367.0,88353.0,0.47614]
[1766138790567,0.19005,88367.0,88354.0,0.0113181]
[1766138790773,0.19005,88367.0,88353.0,0.47614]
[1766138790957,0.19005,88367.0,88353.0,0.48745823]
[1766138791160,0.19005,88367.0,88353.0,0.71382274]
[1766138791579,0.19005,88367.0,88354.0,0.0113181]
[1766138791841,0.0025,88365.0,88354.0,0.0113181]
[1766138792133,0.19005,88360.0,88352.0,0.0025]
[1766138792323,0.47014,88358.0,88350.0,0.00568]
[1766138792471,0.19005,88357.0,88350.0,0.00568]
[1766138792670,0.19005,88357.0,88341.0,0.01131977]
[1766138792882,0.19005,88351.0,88340.0,0.0169999]
[1766138793110,0.19005,88350.0,88341.0,0.23771394]
[1766138793648,0.19005,88350.0,88342.0,0.22639131]
[1766138793862,0.19005,88350.0,88342.0,0.01131964]
[1766138794084,0.00568,88354.0,88350.0,0.001099]
[1766138794635,0.00568,88354.0,88346.0,0.0025]
[1766138795153,0.00568,88354.0,88346.0,0.01381913]
[1766138795349,0.00568,88354.0,88346.0,0.0025]
[1766138796135,0.00568,88354.0,88346.0,0.01381913]
[1766138796338,0.00568,88354.0,88346.0,0.0025]
[1766138796546,0.00568,88354.0,88347.0,0.011319]
[1766138796746,0.00568,88354.0,88346.0,0.24019978]
[1766138797158,0.00568,88354.0,88346.0,0.0025]
[1766138797362,0.00568,88354.0,88346.0,0.24019995]
[1766138797801,0.00568,88354.0,88347.0,0.011319]
[1766138798369,0.00568,88354.0,88346.0,0.01381913]
[1766138798586,0.00568,88354.0,88347.0,0.011319]
[1766138798792,0.00568,88354.0,88346.0,0.24020129]
[1766138798957,0.00568,88354.0,88347.0,0.011319]
[1766138799158,0.22632677,88368.0,88347.0,0.011319]
[1766138799159,0.00568,88366.0,88354.0,0.0124171]
[1766138799520,0.0025,88365.0,88354.0,0.23767826]
[1766138799735,0.0025,88365.0,88355.0,0.22635949]
[1766138799902,0.0025,88365.0,88355.0,0.23767746]
[1766138800603,0.18672,88365.0,88353.0,0.01131823]
[1766138800806,0.18672,88365.0,88349.0,0.67695346]
[1766138801014,0.0025,88360.0,88352.0,0.01131836]
[1766138801179,0.0025,88360.0,88351.0,0.22636913]
[1766138801180,0.0025,88358.0,88351.0,0.22636913]
[1766138801612,0.0025,88358.0,88350.0,1.01131861]
[1766138802023,0.18672,88358.0,88350.0,1.01131861]
[1766138802233,0.18672,88358.0,88350.0,1.2376891]
[1766138802635,0.0025,88358.0,88351.0,0.01131849]
[1766138802832,0.0025,88358.0,88350.0,1.2376891]
[1766138803011,0.0025,88358.0,88350.0,1.01131861]
[1766138804934,0.0025,88358.0,88351.0,0.01131849]
[1766138805120,0.0025,88358.0,88350.0,1.0]
[1766138805329,0.45559,88356.0,88350.0,0.53955]
[1766138805550,0.18422,88355.0,88350.0,0.53955]
[1766138806970,0.2297,88355.0,88347.0,0.00568]
[1766138807190,0.18422,88353.0,88347.0,0.00568]
[1766138807969,0.18422,88353.0,88346.0,0.0025]
[1766138807970,0.1899,88353.0,88346.0,0.0025]
[1766138808204,0.18422,88352.0,88346.0,0.0025]
[1766138808408,0.22105,88352.0,88342.0,0.00010895]
[1766138808543,0.18422,88351.0,88342.0,0.00010895]
[1766138810099,0.00093784,88350.0,88342.0,0.00010895]
[1766138810315,0.00093784,88350.0,88343.0,0.0025]
[1766138811361,0.18515784,88350.0,88343.0,0.0025]
[1766138811557,0.18422,88349.0,88343.0,0.0025]
[1766138812397,0.19553874,88349.0,88343.0,0.0025]
[1766138812593,0.18422,88349.0,88343.0,0.0025]
[1766138814174,0.00093784,88348.0,88343.0,0.0025]
[1766138816017,0.18515784,88348.0,88343.0,0.0025]
[1766138817384,0.01131925,88345.0,88334.0,0.45058]
[1766138817618,0.2264034,88338.0,88331.0,0.04037963]
[1766138817827,0.22641851,88332.0,88331.0,0.00010898]
[1766138818035,0.23774532,88330.0,88327.0,0.00568]
[1766138818246,0.01132092,88332.0,88327.0,0.00578918]
[1766138818461,0.01132105,88331.0,88327.0,0.00010918]
[1766138818689,0.23774014,88332.0,88327.0,0.00010918]
[1766138818690,0.01132118,88330.0,88327.0,0.00010918]
[1766138818906,0.01132118,88330.0,88321.0,0.051]
[1766138818907,0.22643355,88327.0,88317.0,0.45058]
[1766138819114,0.18422,88320.0,88309.0,0.04532]
[1766138819316,0.18422,88320.0,88309.0,0.05110943]
[1766138819748,0.18422,88320.0,88310.0,0.0025]
[1766138820479,0.183121,88320.0,88309.0,0.05110943]
[1766138820695,0.00093784,88319.0,88310.0,0.52569]
[1766138820894,0.00568,88334.0,88319.0,0.45058]
[1766138821092,0.00818,88333.0,88321.0,0.52246]
[1766138821320,0.01,88345.0,88326.0,0.53378169]
[1766138821492,0.00568,88344.0,88328.0,0.45058]
[1766138821697,0.23767807,88355.0,88333.0,0.45308]
[1766138821899,0.23768151,88354.0,88336.0,0.52496]
[1766138822107,0.01699823,88353.0,88336.0,0.52496]
[1766138822339,0.0025,88350.0,88336.0,0.45308]
[1766138822560,0.18672,88350.0,88336.0,0.0025]
[1766138822759,0.01131913,88346.0,88336.0,0.0025]
[1766138822971,0.001099,88336.0,88328.0,0.00568]
[1766138823336,0.0025,88334.0,88315.0,0.23778519]
[1766138823450,0.0025,88334.0,88313.0,0.23778855]
[1766138823451,0.18672,88331.0,88316.0,0.00568]
[1766138823854,0.18672,88331.0,88314.0,0.45058]
[1766138823855,0.17728,88328.0,88314.0,0.45058]
[1766138824058,0.17728,88328.0,88315.0,0.00568]
[1766138824311,0.17728,88328.0,88316.0,0.00568]
[1766138824858,0.17728,88328.0,88317.0,0.0025]
[1766138825054,0.0025,88332.0,88319.0,0.0025]
[1766138825259,0.0025,88332.0,88318.0,0.42053]
[1766138826224,0.17728,88331.0,88318.0,0.42053]
[1766138828820,0.0025,88332.0,88318.0,0.42053]
[1766138828821,0.0025,88332.0,88318.0,0.0025]
[1766138829026,0.0025,88332.0,88320.0,0.0025]
[1766138829435,0.0025,88332.0,88320.0,0.44052068]
[1766138829639,0.0025,88332.0,88320.0,0.42053]
[1766138829854,0.0025,88332.0,88323.0,0.41803]
[1766138830241,0.00568,88337.0,88325.0,0.48304]
[1766138830552,0.18296,88341.0,88331.0,0.0025]
[1766138831366,0.20898,88340.0,88331.0,0.0025]
[1766138831759,0.20898,88340.0,88319.0,0.2264515]
[1766138831760,0.0025,88327.0,88314.0,0.41803]
[1766138831922,0.1886022,88322.0,88307.0,0.41803]
[1766138832097,0.41504666,88322.0,88308.0,0.00568]
[1766138832301,0.17728,88322.0,88308.0,0.42371]
[1766138833408,0.0025,88331.0,88318.0,0.22645357]
[1766138833617,0.00568,88336.0,88323.0,0.0681]
[1766138833789,0.00568,88336.0,88326.0,0.42053]
[1766138835587,0.0025,88342.0,88328.0,0.41803]
[1766138835804,0.00568,88341.0,88330.0,0.41803]
[1766138836014,0.01,88349.0,88331.0,0.4406721]
[1766138836216,0.00568,88349.0,88337.0,0.06376]
[1766138836414,0.00568,88349.0,88330.0,0.01132118]
[1766138836415,0.01131887,88348.0,88338.0,0.41803]
[1766138836572,0.001099,88337.0,88332.0,0.0025]
[1766138836909,0.40069887,88348.0,88332.0,0.0025]
[1766138836910,0.22637894,88348.0,88332.0,0.00818]
[1766138837110,0.01131887,88348.0,88332.0,0.00818]
[1766138837326,0.01131925,88345.0,88332.0,0.00818]
[1766138837619,0.38084,88344.0,88329.0,0.00568]
[1766138837773,0.001099,88329.0,88320.0,0.41803]
[1766138837975,0.001099,88329.0,88324.0,0.00568]
[1766138838359,0.17728,88332.0,88324.0,0.00568]
[1766138838715,0.17728,88332.0,88320.0,0.41803]
[1766138838861,0.17728,88332.0,88318.0,0.00010926]
[1766138838862,0.0025,88328.0,88318.0,0.00010926]
[1766138839059,0.17978,88328.0,88318.0,0.00010926]
[1766138840115,0.17978,88326.0,88318.0,2.6e-07]
[1766138840291,0.17728,88323.0,88318.0,2.6e-07]
[1766138842515,0.20187,88322.0,88318.0,2.6e-07]
[1766138842740,0.17728,88312.0,88294.0,0.41803]
[1766138843080,0.17737071,88312.0,88295.0,0.43503566]
[1766138843283,0.17737071,88312.0,88296.0,0.44465]
[1766138843425,0.17737071,88312.0,88296.0,0.22901079]
[1766138843612,0.17737071,88312.0,88298.0,0.44465]
[1766138845214,0.17737071,88312.0,88298.0,0.44215]
[1766138845215,0.17444,88310.0,88298.0,0.44215]
[1766138845416,0.0025,88309.0,88298.0,0.44215]
[1766138845671,0.0025,88309.0,88299.0,0.0025]
[1766138845826,0.17694,88309.0,88299.0,0.0025]
[1766138846231,0.17694,88309.0,88298.0,0.44215]
[1766138846634,0.0025,88309.0,88298.0,0.44215]
[1766138846840,0.0025,88309.0,88299.0,0.0025]
[1766138847467,0.17694,88309.0,88299.0,0.0025]
[1766138848480,0.17694,88309.0,88307.0,0.00024688]
[1766138848682,0.17694,88309.0,88307.0,8.8e-07]
[1766138848903,0.3738,88308.0,88307.0,8.8e-07]
[1766138849504,0.00568,88308.0,88307.0,8.8e-07]
[1766138850885,0.60536004,88308.0,88307.0,8.8e-07]
[1766138851272,0.37888,88308.0,88307.0,8.8e-07]
[1766138851382,0.60536004,88308.0,88307.0,8.8e-07]
[1766138851588,0.23781498,88304.0,88290.0,0.0025]
[1766138851795,0.37291,88304.0,88290.0,0.0025]
[1766138852013,0.17444,88303.0,88290.0,0.0025]
[1766138852743,0.17444,88296.0,88285.0,0.15348]
[1766138852968,0.17444,88296.0,88285.0,0.00568]
[1766138853248,0.01132605,88292.0,88285.0,0.00568]
[1766138853454,0.01132579,88294.0,88285.0,0.00568]
[1766138853455,0.412283,88294.0,88285.0,0.00568]
[1766138853608,0.01132708,88284.0,88272.0,0.00568]
[1766138853812,0.17444,88283.0,88272.0,0.00568]
[1766138854012,0.17444,88283.0,88273.0,0.0025]
[1766138854215,0.0025,88282.0,88272.0,0.00568]